[Event "Late-Titled-Tuesday-Blitz-February-20-2024"]
[Site "Chess.com"]
[Date "2024.02.20"]
[Round "3"]
[White "Mikasinski"]
[Black "jcibarra"]
[Result "1-0"]
[WhiteElo "2672"]
[BlackElo "2919"]
[TimeControl "180+1"]
[EndTime "14:28:29 PST"]
[Termination "Mikasinski won on time"]

1. e4 {[%clk 0:03:00.9]} 1... c5 {[%clk 0:02:58.6]} 2. c3 {[%clk 0:03:00.1]}
2... Nf6 {[%clk 0:02:57.8]} 3. e5 {[%clk 0:03:00.3]} 3... Nd5 {[%clk 0:02:58.4]}
4. Nf3 {[%clk 0:02:39.3]} 4... Nc6 {[%clk 0:02:56.9]} 5. d4 {[%clk 0:02:37.3]}
5... cxd4 {[%clk 0:02:56.8]} 6. Bc4 {[%clk 0:02:37.3]} 6... Nb6 {[%clk
0:02:56.5]} 7. Bb3 {[%clk 0:02:37.8]} 7... g6 {[%clk 0:02:56.8]} 8. O-O {[%clk
0:02:35.9]} 8... Bg7 {[%clk 0:02:56.5]} 9. cxd4 {[%clk 0:02:36.3]} 9... O-O
{[%clk 0:02:56.3]} 10. Nc3 {[%clk 0:02:34.7]} 10... d6 {[%clk 0:02:55.4]} 11.
exd6 {[%clk 0:02:30.8]} 11... Qxd6 {[%clk 0:02:54.7]} 12. d5 {[%clk 0:02:26.5]}
12... Na5 {[%clk 0:02:50]} 13. Bc2 {[%clk 0:02:18.5]} 13... Rd8 {[%clk
0:02:41.3]} 14. Qe2 {[%clk 0:02:13]} 14... Bg4 {[%clk 0:02:26.7]} 15. h3 {[%clk
0:02:08.6]} 15... Bxf3 {[%clk 0:02:25]} 16. Qxf3 {[%clk 0:02:07.2]} 16... Nxd5
{[%clk 0:02:11.1]} 17. Rd1 {[%clk 0:02:02.4]} 17... e6 {[%clk 0:02:10.9]} 18.
Ne4 {[%clk 0:01:55.6]} 18... Qc6 {[%clk 0:02:08.5]} 19. Qe2 {[%clk 0:01:45.8]}
19... Rac8 {[%clk 0:02:04.7]} 20. Bb1 {[%clk 0:01:35.2]} 20... Qxc1 {[%clk
0:01:10.9]} 21. Rxc1 {[%clk 0:01:32.1]} 21... Rxc1+ {[%clk 0:01:11.8]} 22. Kh2
{[%clk 0:01:31.7]} 22... Nc4 {[%clk 0:01:00.3]} 23. Bd3 {[%clk 0:01:23.4]} 23...
Nf4 {[%clk 0:00:40.8]} 24. Rxc1 {[%clk 0:01:24]} 24... Nxe2 {[%clk 0:00:40.5]}
25. Bxe2 {[%clk 0:01:24.9]} 25... Nxb2 {[%clk 0:00:34.6]} 26. g3 {[%clk
0:01:24.3]} 26... f5 {[%clk 0:00:32]} 27. Ng5 {[%clk 0:01:23.5]} 27... Bf6
{[%clk 0:00:27.5]} 28. Nxe6 {[%clk 0:01:22.6]} 28... Rd2 {[%clk 0:00:27.5]} 29.
Re1 {[%clk 0:01:09.2]} 29... Kf7 {[%clk 0:00:20.6]} 30. Nc5 {[%clk 0:01:06.1]}
30... Rc2 {[%clk 0:00:18.1]} 31. Nb3 {[%clk 0:01:03.4]} 31... Bc3 {[%clk
0:00:17.2]} 32. Rc1 {[%clk 0:00:58.5]} 32... Rxe2 {[%clk 0:00:14.8]} 33. Rxc3
{[%clk 0:00:57.6]} 33... Na4 {[%clk 0:00:12.6]} 34. Rc7+ {[%clk 0:00:55.7]}
34... Re7 {[%clk 0:00:13.2]} 35. Rc4 {[%clk 0:00:55.5]} 35... b5 {[%clk
0:00:11.7]} 36. Rc2 {[%clk 0:00:53.7]} 36... b4 {[%clk 0:00:11.3]} 37. Na5
{[%clk 0:00:52.8]} 37... Nc3 {[%clk 0:00:10.6]} 38. Nc6 {[%clk 0:00:53]} 38...
Rb7 {[%clk 0:00:05.9]} 39. Nd8+ {[%clk 0:00:43.5]} 39... Ke7 {[%clk 0:00:03.7]}
40. Nxb7 {[%clk 0:00:44.4]} 40... Ke6 {[%clk 0:00:04.2]} 41. a3 {[%clk
0:00:43.1]} 41... Nd5 {[%clk 0:00:02.4]} 42. axb4 {[%clk 0:00:41.9]} 42... Nxb4
{[%clk 0:00:03.1]} 43. Rc4 {[%clk 0:00:40.4]} 43... Nd3 {[%clk 0:00:03]} 44. Kg2
{[%clk 0:00:39.3]} 44... Kd5 {[%clk 0:00:03.2]} 45. Ra4 {[%clk 0:00:39]} 45...
Kc6 {[%clk 0:00:02.9]} 46. Nd8+ {[%clk 0:00:37.5]} 46... Kb6 {[%clk 0:00:02.1]}
47. Ne6 {[%clk 0:00:37.1]} 47... Ne5 {[%clk 0:00:02.3]} 48. Nf8 {[%clk
0:00:35.6]} 48... h6 {[%clk 0:00:02.9]} 49. f4 {[%clk 0:00:35.4]} 49... Nc6
{[%clk 0:00:02.6]} 50. Nxg6 {[%clk 0:00:35.6]} 50... Kb5 {[%clk 0:00:03.3]} 51.
Ra1 {[%clk 0:00:35.3]} 51... a5 {[%clk 0:00:04]} 52. Nh4 {[%clk 0:00:30.3]}
52... Nd4 {[%clk 0:00:04.3]} 53. g4 {[%clk 0:00:29.3]} 53... fxg4 {[%clk
0:00:04.2]} 54. hxg4 {[%clk 0:00:30]} 54... a4 {[%clk 0:00:05]} 55. g5 {[%clk
0:00:30.2]} 55... hxg5 {[%clk 0:00:04.8]} 56. fxg5 {[%clk 0:00:31.1]} 56... Ne6
{[%clk 0:00:05.2]} 57. g6 {[%clk 0:00:31.6]} 57... Kb4 {[%clk 0:00:06]} 58. Kf3
{[%clk 0:00:31.9]} 58... a3 {[%clk 0:00:06.1]} 59. Ke4 {[%clk 0:00:32.2]} 59...
Kb3 {[%clk 0:00:05.7]} 60. Ke5 {[%clk 0:00:32.6]} 60... Ng7 {[%clk 0:00:06.3]}
61. Kf6 {[%clk 0:00:32.1]} 61... Nh5+ {[%clk 0:00:05.3]} 62. Kg5 {[%clk
0:00:31.5]} 62... Ng7 {[%clk 0:00:05.3]} 63. Nf5 {[%clk 0:00:32]} 63... Ne6+
{[%clk 0:00:05.6]} 64. Kf6 {[%clk 0:00:32.5]} 64... Nf4 {[%clk 0:00:06.3]} 65.
Nd4+ {[%clk 0:00:30.1]} 65... Kb2 {[%clk 0:00:06.3]} 66. Rf1 {[%clk 0:00:20]}
66... a2 {[%clk 0:00:03.7]} 67. Rf2+ {[%clk 0:00:16.8]} 67... Ka3 {[%clk
0:00:02.8]} 68. Nc2+ {[%clk 0:00:15]} 68... Kb2 {[%clk 0:00:03.4]} 69. Rxf4
{[%clk 0:00:15.2]} 69... a1=Q {[%clk 0:00:01.5]} 70. Nxa1 {[%clk 0:00:14.7]} 1-0

[Event "Late-Titled-Tuesday-Blitz-February-20-2024"]
[Site "Chess.com"]
[Date "2024.02.20"]
[Round "3"]
[White "Atanejhad"]
[Black "nindjaxx8"]
[Result "0-1"]
[WhiteElo "2429"]
[BlackElo "2643"]
[TimeControl "180+1"]
[EndTime "14:28:29 PST"]
[Termination "nindjaxx8 won by resignation"]

1. d4 {[%clk 0:03:00.9]} 1... d5 {[%clk 0:03:00.1]} 2. c4 {[%clk 0:03:01.3]}
2... e6 {[%clk 0:02:58.4]} 3. Nc3 {[%clk 0:03:01]} 3... Nf6 {[%clk 0:02:56.7]}
4. Bg5 {[%clk 0:03:01.2]} 4... Be7 {[%clk 0:02:56.5]} 5. e3 {[%clk 0:03:01.5]}
5... O-O {[%clk 0:02:56.4]} 6. Nf3 {[%clk 0:02:59.1]} 6... h6 {[%clk 0:02:56.6]}
7. Bh4 {[%clk 0:02:58.1]} 7... b6 {[%clk 0:02:56.5]} 8. Bd3 {[%clk 0:02:58.5]}
8... dxc4 {[%clk 0:02:56.1]} 9. Bxc4 {[%clk 0:02:57.8]} 9... Bb7 {[%clk
0:02:56.7]} 10. O-O {[%clk 0:02:58]} 10... Nbd7 {[%clk 0:02:55.9]} 11. Qe2
{[%clk 0:02:58.3]} 11... c5 {[%clk 0:02:54.1]} 12. Rfd1 {[%clk 0:02:56.5]} 12...
cxd4 {[%clk 0:02:54]} 13. Nxd4 {[%clk 0:02:56.7]} 13... Bc5 {[%clk 0:02:53.9]}
14. Nb3 {[%clk 0:02:53.4]} 14... Qe7 {[%clk 0:02:52.9]} 15. Nxc5 {[%clk
0:02:52.3]} 15... Qxc5 {[%clk 0:02:52.9]} 16. Bb3 {[%clk 0:02:46.4]} 16... Rad8
{[%clk 0:02:45.7]} 17. Rac1 {[%clk 0:02:44.6]} 17... Qb4 {[%clk 0:02:45]} 18.
Rd4 {[%clk 0:02:39.4]} 18... Qe7 {[%clk 0:02:44.8]} 19. Rcd1 {[%clk 0:02:38.4]}
19... Nc5 {[%clk 0:02:43.7]} 20. Bc2 {[%clk 0:02:32.9]} 20... e5 {[%clk
0:02:33.1]} 21. Rxd8 {[%clk 0:02:23.4]} 21... Rxd8 {[%clk 0:02:34]} 22. Rxd8+
{[%clk 0:02:07.3]} 22... Qxd8 {[%clk 0:02:34.9]} 23. Qd1 {[%clk 0:02:07.4]}
23... Qe7 {[%clk 0:02:26.6]} 24. h3 {[%clk 0:01:59.2]} 24... a6 {[%clk
0:02:16.3]} 25. b4 {[%clk 0:01:42.3]} 25... Ne6 {[%clk 0:02:10.5]} 26. a3 {[%clk
0:01:40.7]} 26... Qc7 {[%clk 0:01:52]} 27. Ne2 {[%clk 0:01:29.4]} 27... Qc6
{[%clk 0:01:47.6]} 28. f3 {[%clk 0:01:29.1]} 28... Nd5 {[%clk 0:01:45.9]} 29.
Bf2 {[%clk 0:01:19.6]} 29... g6 {[%clk 0:01:35.1]} 30. Be4 {[%clk 0:01:16.1]}
30... Qc4 {[%clk 0:01:33.9]} 31. Qd3 {[%clk 0:01:14]} 31... Qa2 {[%clk
0:01:20.8]} 32. Kh2 {[%clk 0:01:09.2]} 32... Kg7 {[%clk 0:01:07.4]} 33. Be1
{[%clk 0:00:58.7]} 33... b5 {[%clk 0:00:39]} 34. Bxd5 {[%clk 0:00:58.3]} 34...
Qxd5 {[%clk 0:00:39.5]} 35. Qxd5 {[%clk 0:00:55.9]} 35... Bxd5 {[%clk
0:00:40.4]} 36. Bc3 {[%clk 0:00:52.9]} 36... f6 {[%clk 0:00:39.8]} 37. Kg1
{[%clk 0:00:45.5]} 37... Bc4 {[%clk 0:00:39.8]} 38. Kf2 {[%clk 0:00:46]} 38...
Bxe2 {[%clk 0:00:38.7]} 39. Kxe2 {[%clk 0:00:46.9]} 39... Kf7 {[%clk 0:00:39.4]}
40. e4 {[%clk 0:00:41.4]} 40... Nc7 {[%clk 0:00:39.6]} 41. g4 {[%clk 0:00:38.9]}
41... Ke6 {[%clk 0:00:38.9]} 42. Kd3 {[%clk 0:00:38.1]} 42... Na8 {[%clk
0:00:37.9]} 43. Bd2 {[%clk 0:00:35.6]} 43... h5 {[%clk 0:00:37.6]} 44. Be3
{[%clk 0:00:36.2]} 44... Nc7 {[%clk 0:00:37.1]} 45. Bc5 {[%clk 0:00:36.4]} 45...
Kd7 {[%clk 0:00:31.8]} 46. Kc3 {[%clk 0:00:35.7]} 46... Ne6 {[%clk 0:00:31.9]}
47. Be3 {[%clk 0:00:34.7]} 47... h4 {[%clk 0:00:26]} 48. Kd3 {[%clk 0:00:29.3]}
48... g5 {[%clk 0:00:25.9]} 49. Kc3 {[%clk 0:00:28.3]} 49... Kd6 {[%clk
0:00:25.1]} 50. Kd3 {[%clk 0:00:27.9]} 50... Kc6 {[%clk 0:00:24.9]} 51. Kc3
{[%clk 0:00:27.9]} 51... Nd8 {[%clk 0:00:22.4]} 52. Kb3 {[%clk 0:00:25.6]} 52...
Nb7 {[%clk 0:00:22.5]} 53. Kc3 {[%clk 0:00:24]} 53... Nd6 {[%clk 0:00:22.9]} 54.
Bc5 {[%clk 0:00:23.8]} 54... Ne8 {[%clk 0:00:15.4]} 55. Be7 {[%clk 0:00:20.6]}
55... Kd7 {[%clk 0:00:14.1]} 56. Bc5 {[%clk 0:00:20.4]} 56... Nc7 {[%clk
0:00:14.6]} 57. Kb3 {[%clk 0:00:20]} 57... Ne6 {[%clk 0:00:15]} 58. Be3 {[%clk
0:00:20.1]} 58... Nd4+ {[%clk 0:00:09]} 59. Bxd4 {[%clk 0:00:18.9]} 59... exd4
{[%clk 0:00:09.6]} 60. Kc2 {[%clk 0:00:18.6]} 60... Kd6 {[%clk 0:00:10.3]} 61.
Kd2 {[%clk 0:00:15.1]} 61... Ke5 {[%clk 0:00:09.1]} 62. Kd3 {[%clk 0:00:15.5]}
62... Kf4 {[%clk 0:00:09.4]} 63. Kxd4 {[%clk 0:00:15.9]} 63... Kxf3 {[%clk
0:00:09.7]} 64. e5 {[%clk 0:00:16.3]} 64... fxe5+ {[%clk 0:00:08]} 65. Kxe5
{[%clk 0:00:17.2]} 65... Kg3 {[%clk 0:00:08.9]} 66. Kf5 {[%clk 0:00:17.6]} 66...
Kxh3 {[%clk 0:00:09.8]} 67. Kxg5 {[%clk 0:00:18.3]} 67... Kg3 {[%clk 0:00:10.4]}
68. Kf5 {[%clk 0:00:18.6]} 68... h3 {[%clk 0:00:11.1]} 69. g5 {[%clk 0:00:19.4]}
69... h2 {[%clk 0:00:11.8]} 70. g6 {[%clk 0:00:20]} 70... h1=Q {[%clk
0:00:12.4]} 71. g7 {[%clk 0:00:20.5]} 71... Qd5+ {[%clk 0:00:12.9]} 72. Kf6
{[%clk 0:00:20.7]} 72... Qg8 {[%clk 0:00:13.8]} 73. Ke7 {[%clk 0:00:20.3]} 73...
Kf3 {[%clk 0:00:14.4]} 0-1

[Event "Late-Titled-Tuesday-Blitz-February-20-2024"]
[Site "Chess.com"]
[Date "2024.02.20"]
[Round "3"]
[White "Fh2411"]
[Black "emeli_chess"]
[Result "1/2-1/2"]
[WhiteElo "2606"]
[BlackElo "2423"]
[TimeControl "180+1"]
[EndTime "14:28:29 PST"]
[Termination "Game drawn by repetition"]

1. d4 {[%clk 0:03:00.9]} 1... Nf6 {[%clk 0:02:59.5]} 2. Nf3 {[%clk 0:03:00.3]}
2... d5 {[%clk 0:02:59.3]} 3. Bf4 {[%clk 0:02:58.8]} 3... c5 {[%clk 0:02:58.1]}
4. e3 {[%clk 0:02:59.2]} 4... Nc6 {[%clk 0:02:55.6]} 5. Nbd2 {[%clk 0:02:59.3]}
5... cxd4 {[%clk 0:02:54.6]} 6. exd4 {[%clk 0:02:59.4]} 6... Bg4 {[%clk
0:02:54.3]} 7. c3 {[%clk 0:02:59.2]} 7... e6 {[%clk 0:02:47]} 8. Qb3 {[%clk
0:02:59.1]} 8... Qc8 {[%clk 0:02:46.2]} 9. h3 {[%clk 0:02:56.8]} 9... Bxf3
{[%clk 0:02:45.7]} 10. Nxf3 {[%clk 0:02:57.2]} 10... Be7 {[%clk 0:02:38.5]} 11.
Bd3 {[%clk 0:02:57.6]} 11... O-O {[%clk 0:02:37.9]} 12. O-O {[%clk 0:02:58.3]}
12... h6 {[%clk 0:02:36.7]} 13. Rfe1 {[%clk 0:02:57]} 13... a6 {[%clk
0:02:33.9]} 14. Qd1 {[%clk 0:02:51.7]} 14... Qd7 {[%clk 0:02:25.5]} 15. Ne5
{[%clk 0:02:46.4]} 15... Nxe5 {[%clk 0:02:19.9]} 16. dxe5 {[%clk 0:02:46.5]}
16... Nh7 {[%clk 0:02:06.4]} 17. Qg4 {[%clk 0:02:45.5]} 17... Bg5 {[%clk
0:02:03.8]} 18. Bxh7+ {[%clk 0:02:42.6]} 18... Kxh7 {[%clk 0:02:03.5]} 19. Bxg5
{[%clk 0:02:43.3]} 19... hxg5 {[%clk 0:02:03.8]} 20. Qxg5 {[%clk 0:02:43.1]}
20... Rac8 {[%clk 0:01:58]} 21. Rad1 {[%clk 0:02:39.7]} 21... Rc4 {[%clk
0:01:56.4]} 22. Rd3 {[%clk 0:02:35.8]} 22... Qd8 {[%clk 0:01:49]} 23. Qh5+
{[%clk 0:02:29.5]} 23... Kg8 {[%clk 0:01:48.6]} 24. Ree3 {[%clk 0:02:15]} 24...
Qh4 {[%clk 0:01:42.4]} 25. Qd1 {[%clk 0:01:59]} 25... Rfc8 {[%clk 0:01:39.6]}
26. Rg3 {[%clk 0:01:45.7]} 26... Re4 {[%clk 0:01:35.6]} 27. Kh2 {[%clk 0:01:39]}
27... Rxe5 {[%clk 0:01:31.2]} 28. Rdf3 {[%clk 0:01:10.6]} 28... Rg5 {[%clk
0:01:22.8]} 29. Qb3 {[%clk 0:01:09.5]} 29... b5 {[%clk 0:01:18.6]} 30. Qa3
{[%clk 0:01:09.7]} 30... Rxg3 {[%clk 0:01:10.4]} 31. fxg3 {[%clk 0:01:09.2]}
31... Qc4 {[%clk 0:01:03.4]} 32. Qxa6 {[%clk 0:01:07.7]} 32... Qc6 {[%clk
0:00:52.7]} 33. Qa7 {[%clk 0:01:07]} 33... Rc7 {[%clk 0:00:51.6]} 34. Qb8+
{[%clk 0:01:06.2]} 34... Rc8 {[%clk 0:00:50.3]} 35. Qf4 {[%clk 0:01:06.6]} 35...
Qd7 {[%clk 0:00:46.7]} 36. a3 {[%clk 0:01:06.1]} 36... Rc4 {[%clk 0:00:44.7]}
37. Qb8+ {[%clk 0:01:05.4]} 37... Kh7 {[%clk 0:00:44.5]} 38. Qf8 {[%clk
0:01:04.9]} 38... f6 {[%clk 0:00:41.6]} 39. h4 {[%clk 0:00:36.8]} 39... e5
{[%clk 0:00:36]} 40. Qa8 {[%clk 0:00:34]} 40... d4 {[%clk 0:00:32.4]} 41. Qe4+
{[%clk 0:00:32.6]} 41... Kg8 {[%clk 0:00:30.7]} 42. Rd3 {[%clk 0:00:31.9]} 42...
Qd6 {[%clk 0:00:21.2]} 43. Qa8+ {[%clk 0:00:27.3]} 43... Kh7 {[%clk 0:00:20.3]}
44. Qe8 {[%clk 0:00:27.7]} 44... Rc5 {[%clk 0:00:14.5]} 45. Qh5+ {[%clk
0:00:25.9]} 45... Kg8 {[%clk 0:00:13.7]} 46. Qe8+ {[%clk 0:00:25.4]} 46... Kh7
{[%clk 0:00:13.3]} 47. cxd4 {[%clk 0:00:26]} 47... exd4 {[%clk 0:00:12.7]} 48.
Qe4+ {[%clk 0:00:26.6]} 48... Kg8 {[%clk 0:00:12]} 49. Rxd4 {[%clk 0:00:26.9]}
49... Qc7 {[%clk 0:00:10]} 50. Qe8+ {[%clk 0:00:26.1]} 50... Kh7 {[%clk
0:00:10.1]} 51. Rd8 {[%clk 0:00:26.8]} 51... Re5 {[%clk 0:00:07.6]} 52. Qg8+
{[%clk 0:00:21.2]} 52... Kg6 {[%clk 0:00:07.6]} 53. Rd3 {[%clk 0:00:16.2]} 53...
Qc4 {[%clk 0:00:06.4]} 54. Qxc4 {[%clk 0:00:14.6]} 54... bxc4 {[%clk 0:00:06.6]}
55. Rc3 {[%clk 0:00:15.2]} 55... Re2 {[%clk 0:00:06.4]} 56. Rxc4 {[%clk
0:00:15.6]} 56... Rxb2 {[%clk 0:00:06.6]} 57. g4 {[%clk 0:00:15.7]} 57... Ra2
{[%clk 0:00:06.3]} 58. a4 {[%clk 0:00:16.4]} 58... Ra3 {[%clk 0:00:05.3]} 59. g3
{[%clk 0:00:16.2]} 59... Ra2+ {[%clk 0:00:04.5]} 60. Kh3 {[%clk 0:00:16.9]}
60... Ra3 {[%clk 0:00:04.7]} 61. Rb4 {[%clk 0:00:16.2]} 61... Kh6 {[%clk
0:00:03.5]} 62. Kg2 {[%clk 0:00:15.1]} 62... Kg6 {[%clk 0:00:02.5]} 63. Kh3
{[%clk 0:00:15]} 63... Kh6 {[%clk 0:00:02.6]} 64. Rc4 {[%clk 0:00:14.6]} 64...
Kg6 {[%clk 0:00:02.2]} 65. Rf4 {[%clk 0:00:15.2]} 65... Kh6 {[%clk 0:00:02.4]}
66. Rc4 {[%clk 0:00:14.4]} 66... Kg6 {[%clk 0:00:02.6]} 1/2-1/2

[Event "Late-Titled-Tuesday-Blitz-February-20-2024"]
[Site "Chess.com"]
[Date "2024.02.20"]
[Round "3"]
[White "stollenmonster"]
[Black "pooh2012"]
[Result "1-0"]
[WhiteElo "2865"]
[BlackElo "2559"]
[TimeControl "180+1"]
[EndTime "14:28:45 PST"]
[Termination "stollenmonster won on time"]

1. e4 {[%clk 0:03:00.9]} 1... c6 {[%clk 0:02:58.9]} 2. d4 {[%clk 0:03:00.7]}
2... d5 {[%clk 0:02:58.3]} 3. e5 {[%clk 0:03:01]} 3... Bf5 {[%clk 0:02:58.1]} 4.
Ne2 {[%clk 0:03:01.6]} 4... c5 {[%clk 0:02:45.4]} 5. Ng3 {[%clk 0:03:01.9]} 5...
Bd7 {[%clk 0:02:42]} 6. c4 {[%clk 0:02:58.6]} 6... cxd4 {[%clk 0:02:36.9]} 7.
Qxd4 {[%clk 0:02:59.1]} 7... dxc4 {[%clk 0:02:31]} 8. Bxc4 {[%clk 0:02:57.7]}
8... Nc6 {[%clk 0:02:28.3]} 9. Qe3 {[%clk 0:02:32.2]} 9... Qa5+ {[%clk 0:02:24]}
10. Nc3 {[%clk 0:02:32.7]} 10... Qxe5 {[%clk 0:02:23.2]} 11. O-O {[%clk
0:02:32.8]} 11... Qxe3 {[%clk 0:02:22]} 12. Bxe3 {[%clk 0:02:33.4]} 12... Nf6
{[%clk 0:02:19.4]} 13. Nb5 {[%clk 0:02:24.4]} 13... Rc8 {[%clk 0:02:13.5]} 14.
Rac1 {[%clk 0:01:56]} 14... a6 {[%clk 0:02:10.9]} 15. Nd4 {[%clk 0:01:55.5]}
15... Nxd4 {[%clk 0:01:50.6]} 16. Bxd4 {[%clk 0:01:56.4]} 16... e6 {[%clk
0:01:46.5]} 17. Rfe1 {[%clk 0:01:47.1]} 17... Be7 {[%clk 0:01:41.4]} 18. Red1
{[%clk 0:01:20.5]} 18... Bc6 {[%clk 0:01:34.2]} 19. a3 {[%clk 0:01:19.4]} 19...
O-O {[%clk 0:01:30.3]} 20. Bf1 {[%clk 0:01:08.8]} 20... Bd5 {[%clk 0:01:11.2]}
21. Bb6 {[%clk 0:01:04.7]} 21... Nd7 {[%clk 0:01:04.8]} 22. Bd4 {[%clk
0:01:03.5]} 22... Bf6 {[%clk 0:01:03.9]} 23. Ne2 {[%clk 0:01:00.9]} 23... Bb3
{[%clk 0:00:54.2]} 24. Re1 {[%clk 0:00:59.8]} 24... Bc4 {[%clk 0:00:51]} 25.
Bxf6 {[%clk 0:00:56.3]} 25... Nxf6 {[%clk 0:00:51.9]} 26. Red1 {[%clk
0:00:48.9]} 26... Nd5 {[%clk 0:00:44.5]} 27. g3 {[%clk 0:00:45.6]} 27... b5
{[%clk 0:00:35.2]} 28. Nd4 {[%clk 0:00:41.1]} 28... Rfd8 {[%clk 0:00:26]} 29. b3
{[%clk 0:00:36]} 29... Bxf1 {[%clk 0:00:25.2]} 30. Kxf1 {[%clk 0:00:36.1]} 30...
Kf8 {[%clk 0:00:22.1]} 31. Nc6 {[%clk 0:00:27.7]} 31... Rd7 {[%clk 0:00:17.9]}
32. Ne5 {[%clk 0:00:18.5]} 32... Rdc7 {[%clk 0:00:17.6]} 33. Rxc7 {[%clk
0:00:18.9]} 33... Rxc7 {[%clk 0:00:18.2]} 34. a4 {[%clk 0:00:19.4]} 34... f6
{[%clk 0:00:13.7]} 35. Nd3 {[%clk 0:00:18.5]} 35... Rc3 {[%clk 0:00:13.4]} 36.
axb5 {[%clk 0:00:17.8]} 36... axb5 {[%clk 0:00:14.3]} 37. b4 {[%clk 0:00:18]}
37... Rc4 {[%clk 0:00:11.7]} 38. Nc5 {[%clk 0:00:17.8]} 38... Kf7 {[%clk
0:00:11.6]} 39. Ra1 {[%clk 0:00:17.3]} 39... Nxb4 {[%clk 0:00:06.6]} 40. Ra7+
{[%clk 0:00:17.5]} 40... Kg6 {[%clk 0:00:05.7]} 41. Nxe6 {[%clk 0:00:18.1]}
41... Nc6 {[%clk 0:00:04.9]} 42. Rxg7+ {[%clk 0:00:16.6]} 42... Kf5 {[%clk
0:00:05.5]} 43. Nf4 {[%clk 0:00:16.4]} 43... b4 {[%clk 0:00:05.2]} 44. Ke2
{[%clk 0:00:15.5]} 44... b3 {[%clk 0:00:04.8]} 45. Nd3 {[%clk 0:00:15]} 45...
Rc2+ {[%clk 0:00:04.6]} 46. Ke3 {[%clk 0:00:15.1]} 46... b2 {[%clk 0:00:04.1]}
47. Rb7 {[%clk 0:00:09.1]} 47... Ne5 {[%clk 0:00:04.2]} 48. Rxb2 {[%clk
0:00:09.3]} 48... Nc4+ {[%clk 0:00:03]} 49. Kf3 {[%clk 0:00:08.8]} 49... Nxb2
{[%clk 0:00:03.9]} 50. g4+ {[%clk 0:00:09.2]} 50... Ke6 {[%clk 0:00:03.5]} 51.
Nf4+ {[%clk 0:00:09.4]} 51... Kf7 {[%clk 0:00:04]} 52. h4 {[%clk 0:00:09.8]}
52... Rc3+ {[%clk 0:00:04.3]} 53. Ke4 {[%clk 0:00:10.3]} 53... Rc2 {[%clk
0:00:03.9]} 54. f3 {[%clk 0:00:10.2]} 54... Rc4+ {[%clk 0:00:04.5]} 55. Kf5
{[%clk 0:00:10.6]} 55... Rc5+ {[%clk 0:00:04.1]} 56. Ke4 {[%clk 0:00:10.9]}
56... Re5+ {[%clk 0:00:04.7]} 57. Kd4 {[%clk 0:00:10.7]} 57... Nd1 {[%clk
0:00:05.4]} 58. Nd3 {[%clk 0:00:10.3]} 58... Re2 {[%clk 0:00:05.3]} 59. f4
{[%clk 0:00:10.4]} 59... Rg2 {[%clk 0:00:05.2]} 60. g5 {[%clk 0:00:10.4]} 60...
Nf2 {[%clk 0:00:05.2]} 61. Nc5 {[%clk 0:00:10]} 61... fxg5 {[%clk 0:00:04.9]}
62. hxg5 {[%clk 0:00:10.1]} 62... Nh3 {[%clk 0:00:05.4]} 63. Ke5 {[%clk
0:00:09.7]} 63... Re2+ {[%clk 0:00:05.4]} 64. Kf5 {[%clk 0:00:09.8]} 64... Rf2
{[%clk 0:00:05.4]} 65. Nd3 {[%clk 0:00:10]} 65... Rf1 {[%clk 0:00:06]} 66. Ne5+
{[%clk 0:00:10.3]} 66... Kg7 {[%clk 0:00:05]} 67. Nd3 {[%clk 0:00:10.5]} 67...
Nf2 {[%clk 0:00:04.8]} 68. Ne5 {[%clk 0:00:09.4]} 68... Ra1 {[%clk 0:00:05]} 69.
Nc6 {[%clk 0:00:07.7]} 69... Rc1 {[%clk 0:00:04.5]} 70. Ne5 {[%clk 0:00:07.8]}
70... Rc5 {[%clk 0:00:05]} 71. Ke6 {[%clk 0:00:08.2]} 71... Ra5 {[%clk
0:00:04.4]} 72. f5 {[%clk 0:00:08.4]} 72... Ne4 {[%clk 0:00:03.9]} 73. f6+
{[%clk 0:00:08]} 73... Kg8 {[%clk 0:00:02]} 74. Nd7 {[%clk 0:00:08.3]} 1-0